[Event "Niedersachsen-ch B 2024"]
[Site "Verden Aller"]
[Date "2024.01.05"]
[Round "4.10"]
[White "Eitel, Luc"]
[Black "Rademacher, Bengt"]
[Result "1/2-1/2"]
[ECO "B15"]
[WhiteElo "1535"]
[BlackElo "1702"]
[Annotator "NA RC"]
[PlyCount "116"]
[EventDate "2024.01.01"]
[EventType "swiss"]
[EventCountry "GER"]
[SourceTitle "playchess.com"]
[Source "ChessBase"]
[SourceQuality "1"]
[TimeControl "40/5400+30:1800+30"]

1. e4 {[%emt 0:00:03]} c6 {[%emt 0:00:12]} 2. d4 {[%emt 0:00:40]} d5 {[%emt 0:00:09]} 3. Nd2 {[%emt 0:00:10]} dxe4 {[%emt 0:00:19]} 4. Nxe4 {[%emt 0:00:08]} Nf6 {[%emt 0:00:20]} 5. Nxf6+ {[%emt 0:00:15]} exf6 {[%emt 0:00:18]} 6. c3 {[%emt 0:00:16]} Bd6 {[%emt 0:00:41]} 7. Bd3 {[%emt 0:00:09]} O-O {[%emt 0:00:30]} 8. Ne2 {[%emt 0:00:05]} Re8 {[%emt 0:00:38]} 9. O-O {[%emt 0:00:14]} Qc7 {[%emt 0:02:06]} 10. Ng3 {[%emt 0:01:40]} Nd7 {[%emt 0:03:26]} 11. Qh5 {[%emt 0:00:51]} Nf8 {[%emt 0:01:44]} 12. Ne4 {[%emt 0:01:54]} Be7 {[%emt 0:10:25]} 13. Re1 {[%emt 0:05:52]} Be6 {[%emt 0:08:05]} 14. Qf3 {[%emt 0:10:46]} Rad8 {[%emt 0:05:18]} 15. Bf4 {[%emt 0:01:25]} Qa5 {[%emt 0:00:26]} 16. Qg3 {[%emt 0:00:42]} Rd7 {[%emt 0:04:18]} 17. Nd6 {[%emt 0:07:24]} Red8 {[%emt 0:03:54]} 18. Nc4 {[%emt 0:02:51]} Qh5 {[%emt 0:03:09]} 19. Bc7 {[%emt 0:04:46]} Rc8 {[%emt 0:01:54]} 20. Bf4 {[%emt 0:05:04]} c5 {[%emt 0:04:38]} 21. Be2 {[%emt 0:01:31]} Qg6 {[%emt 0:01:48]} 22. dxc5 {[%emt 0:04:42]} Rxc5 {[%emt 0:04:27]} 23. Ne3 {[%emt 0:02:38]} Qxg3 {[%emt 0:01:05]} 24. Bxg3 {[%emt 0:01:14]} Rd2 {[%emt 0:00:50]} 25. Nd1 {[%emt 0:03:39]} Ng6 {[%emt 0:03:01]} 26. Bf3 {[%emt 0:02:12]} Bd5 {[%emt 0:09:58]} 27. Re2 {[%emt 0:01:18]} Rxe2 {[%emt 0:02:31]} 28. Bxe2 {[%emt 0:01:22]} Ra5 {[%emt 0:02:24]} 29. c4 {[%emt 0:01:36]} Be6 {[%emt 0:02:14]} 30. a3 {[%emt 0:03:23]} f5 {[%emt 0:01:40]} 31. b4 {[%emt 0:03:08]} Bxb4 {[%emt 0:01:41]} 32. Bc7 {[%emt 0:01:12]} Rxa3 {[%emt 0:01:43]} 33. Rb1 {[%emt 0:01:17]} a5 {[%emt 0:02:09]} 34. Ne3 {[%emt 0:01:20]} Ra2 {[%emt 0:01:38]} 35. Bf3 {[%emt 0:32:13]} f4 {[%emt 0:03:26]} 36. Nd5 {[%emt 0:00:12]} Rc2 {[%emt 0:01:11]} 37. Nxb4 {[%emt 0:01:36]} axb4 {[%emt 0:00:26]} 38. Bd6 {[%emt 0:00:54]} Bxc4 {[%emt 0:05:45]} 39. Bxb4 {[%emt 0:00:28]} b5 {[%emt 0:00:32]} 40. h3 {[%emt 0:00:12]} h6 {[%emt 0:01:33]} 41. Bd6 {[%emt 0:30:21]} Nf8 {[%emt 0:32:40]} 42. Bxf4 {[%emt 0:03:13]} Ne6 {[%emt 0:01:01]} 43. Bd1 {[%emt 0:01:21]} Ra2 {[%emt 0:02:12]} 44. Be3 {[%emt 0:26:57]} Ng5 {[%emt 0:00:00]} 45. Bb3 {[%emt 0:00:00]} Ra3 {[%emt 0:00:00]} 46. Bxc4 {[%emt 0:00:00]} bxc4 {[%emt 0:00:00]} 47. Bxg5 {[%emt 0:00:00]} hxg5 {[%emt 0:00:00]} 48. Rc1 {[%emt 0:00:00]} Ra4 {[%emt 0:00:00]} 49. Kf1 {[%emt 0:00:00]} f6 {[%emt 0:00:00]} 50. Ke2 {[%emt 0:29:32]} Kf7 {[%emt 0:00:00]} 51. Ke3 {[%emt 0:00:00]} Ke6 {[%emt 0:00:00]} 52. Kd4 {[%emt 0:00:00]} Kf5 {[%emt 0:00:00]} 53. Rc2 {[%emt 0:00:00]} Kf4 {[%emt 0:08:35]} 54. Rc3 {[%emt 0:00:00]} Kf5 {[%emt 0:00:00]} 55. Rf3+ {[%emt 0:00:00]} Ke6 {[%emt 0:00:00]} 56. Re3+ {[%emt 0:00:00]} Kd6 {[%emt 0:00:00]} 57. Rc3 {[%emt 0:00:00]} Ke6 {[%emt 0:00:00]} 58. Rxc4 {[%emt 0:00:00]} Rxc4+ {[%emt 0:00:54]} 1/2-1/2

[Event "Niedersachsen-ch B 2024"]
[Site "Verden Aller"]
[Date "2024.01.05"]
[Round "4.12"]
[White "Krueger, Moritz"]
[Black "Freise, Linus"]
[Result "0-1"]
[ECO "A42"]
[WhiteElo "1607"]
[BlackElo "1480"]
[Annotator "NA RC"]
[PlyCount "116"]
[EventDate "2024.01.01"]
[EventType "swiss"]
[EventCountry "GER"]
[SourceTitle "playchess.com"]
[Source "ChessBase"]
[SourceQuality "1"]
[TimeControl "40/5400+30:1800+30"]

1. d4 {[%emt 0:00:10]} d6 {[%emt 0:00:05]} 2. c4 {[%emt 0:00:08]} g6 {[%emt 0:00:03]} 3. Nc3 {[%emt 0:00:06]} Bg7 {[%emt 0:00:05]} 4. e4 {[%emt 0:00:07]} Nd7 {[%emt 0:00:23]} 5. Nf3 {[%emt 0:00:10]} c5 {[%emt 0:00:09]} 6. Be3 {[%emt 0:00:07]} b6 {[%emt 0:01:53]} 7. Be2 {[%emt 0:00:16]} Bb7 {[%emt 0:00:52]} 8. Qd2 {[%emt 0:00:25]} Ngf6 {[%emt 0:00:25]} 9. d5 {[%emt 0:00:07]} Ng4 {[%emt 0:01:25]} 10. Bf4 {[%emt 0:00:19]} O-O {[%emt 0:00:56]} 11. O-O {[%emt 0:00:11]} Nge5 {[%emt 0:04:35]} 12. Bh6 {[%emt 0:00:16]} Nxf3+ {[%emt 0:00:16]} 13. Bxf3 {[%emt 0:00:06]} Ne5 {[%emt 0:00:02]} 14. Be2 {[%emt 0:00:09]} Bc8 {[%emt 0:04:26]} 15. Bxg7 {[%emt 0:00:41]} Kxg7 {[%emt 0:01:46]} 16. f4 {[%emt 0:00:51]} Nd7 {[%emt 0:01:56]} 17. Rae1 {[%emt 0:00:19]} f5 {[%emt 0:01:10]} 18. Bd3 {[%emt 0:00:32]} fxe4 {[%emt 0:00:47]} 19. Nxe4 {[%emt 0:00:15]} Nf6 {[%emt 0:08:52]} 20. Qc3 {[%emt 0:00:21]} Kg8 {[%emt 0:00:40]} 21. Ng3 {[%emt 0:00:21]} b5 {[%emt 0:08:55]} 22. b3 {[%emt 0:00:24]} bxc4 {[%emt 0:02:54]} 23. bxc4 {[%emt 0:00:07]} Bd7 {[%emt 0:14:41]} 24. f5 {[%emt 0:00:20]} g5 {[%emt 0:00:12]} 25. Rf2 {[%emt 0:02:29]} Rf7 {[%emt 0:00:59]} 26. Qd2 {[%emt 0:01:05]} Rg7 {[%emt 0:00:07]} 27. h3 {[%emt 0:04:41]} h6 {[%emt 0:00:20]} 28. Nf1 {[%emt 0:00:29]} Qe8 {[%emt 0:02:26]} 29. g4 {[%emt 0:00:15]} a5 {[%emt 0:01:52]} 30. Qc3 {[%emt 0:00:38]} h5 {[%emt 0:03:12]} 31. Ne3 {[%emt 0:02:07]} Rh7 {[%emt 0:01:01]} 32. Rh2 {[%emt 0:00:10]} Qf8 {[%emt 0:00:14]} 33. Ree2 {[%emt 0:00:22]} Kf7 {[%emt 0:00:43]} 34. h4 {[%emt 0:00:57]} Qg7 {[%emt 0:00:33]} 35. Reg2 {[%emt 0:00:38]} Rah8 {[%emt 0:02:26]} 36. Bc2 {[%emt 0:00:34]} hxg4 {[%emt 0:02:00]} 37. Nxg4 {[%emt 0:00:34]} Nxg4 {[%emt 0:00:28]} 38. Qxg7+ {[%emt 0:00:08]} Rxg7 {[%emt 0:00:08]} 39. Rxg4 {[%emt 0:00:11]} gxh4 {[%emt 0:00:13]} 40. Rxg7+ {[%emt 0:02:42]} Kxg7 {[%emt 0:00:09]} 41. Rg2+ {[%emt 0:30:06]} Kf7 {[%emt 0:30:48]} 42. Kh2 {[%emt 0:00:28]} Rh5 {[%emt 0:05:44]} 43. Bd1 {[%emt 0:03:49]} Rh6 {[%emt 0:02:25]} 44. Bg4 {[%emt 0:00:47]} Kf6 {[%emt 0:05:46]} 45. Kh3 {[%emt 0:00:26]} Rh8 {[%emt 0:01:12]} 46. Rb2 {[%emt 0:00:24]} Bxf5 {[%emt 0:09:31]} 47. Rf2 {[%emt 0:00:15]} Rh5 {[%emt 0:00:04]} 48. Rf4 {[%emt 0:02:02]} Rg5 {[%emt 0:00:46]} 49. Bxf5 {[%emt 0:00:32]} Rxf5 {[%emt 0:00:05]} 50. Rxh4 {[%emt 0:00:36]} Rf3+ {[%emt 0:00:04]} 51. Kg2 {[%emt 0:00:59]} Ra3 {[%emt 0:00:13]} 52. Rh6+ {[%emt 0:00:12]} Kf7 {[%emt 0:00:08]} 53. Rh7+ {[%emt 0:01:10]} Ke8 {[%emt 0:00:04]} 54. Rg7 {[%emt 0:00:28]} Rxa2+ {[%emt 0:00:09]} 55. Kf3 {[%emt 0:00:06]} Rc2 {[%emt 0:00:47]} 56. Ke4 {[%emt 0:00:26]} Rxc4+ {[%emt 0:00:51]} 57. Kf5 {[%emt 0:00:07]} Kd7 {[%emt 0:00:24]} 58. Rg8 {[%emt 0:00:09]} Rd4 {[%emt 0:00:13]} 0-1

[Event "Niedersachsen-ch B 2024"]
[Site "Verden Aller"]
[Date "2024.01.05"]
[Round "4.14"]
[White "Homann, Christoph"]
[Black "Pac, Maksym"]
[Result "0-1"]
[ECO "A85"]
[WhiteElo "1597"]
[BlackElo "1416"]
[Annotator "NA RC"]
[PlyCount "78"]
[EventDate "2024.01.01"]
[EventType "swiss"]
[EventCountry "GER"]
[SourceTitle "playchess.com"]
[Source "ChessBase"]
[SourceQuality "1"]
[TimeControl "40/5400+30:1800+30"]

1. d4 {[%emt 0:02:45]} d5 {[%emt 0:00:01]} 2. c4 {[%emt 0:00:38]} e6 {[%emt 0:00:06]} 3. Nc3 {[%emt 0:00:08]} c6 {[%emt 0:00:03]} 4. e3 {[%emt 0:01:30]} f5 {[%emt 0:00:36]} 5. Nf3 {[%emt 0:00:53]} Nf6 {[%emt 0:00:04]} 6. Bd3 {[%emt 0:01:24]} Bd6 {[%emt 0:00:05]} 7. Ne5 {[%emt 0:04:20]} O-O {[%emt 0:01:32]} 8. O-O {[%emt 0:00:33]} Bxe5 {[%emt 0:03:09]} 9. dxe5 {[%emt 0:00:04]} Ne4 {[%emt 0:00:10]} 10. Ne2 {[%emt 0:06:30]} Nd7 {[%emt 0:06:55]} 11. f4 {[%emt 0:00:34]} Qb6 {[%emt 0:04:40]} 12. Nd4 {[%emt 0:05:16]} Ndc5 {[%emt 0:00:13]} 13. Qe2 {[%emt 0:05:01]} Nxd3 {[%emt 0:06:23]} 14. Qxd3 {[%emt 0:03:44]} Bd7 {[%emt 0:00:10]} 15. cxd5 {[%emt 0:02:11]} exd5 {[%emt 0:03:46]} 16. b4 {[%emt 0:02:18]} a5 {[%emt 0:03:21]} 17. bxa5 {[%emt 0:03:58]} Rxa5 {[%emt 0:01:07]} 18. Nb3 {[%emt 0:00:44]} Ra6 {[%emt 0:07:41]} 19. Bb2 {[%emt 0:11:42]} Rfa8 {[%emt 0:02:49]} 20. Bd4 {[%emt 0:07:20]} Qc7 {[%emt 0:11:08]} 21. Nc5 {[%emt 0:06:02]} Rxa2 {[%emt 0:02:53]} 22. Nxe4 {[%emt 0:00:37]} fxe4 {[%emt 0:03:00]} 23. Qb3 {[%emt 0:02:45]} R2a6 {[%emt 0:09:25]} 24. Rab1 {[%emt 0:01:48]} b5 {[%emt 0:02:01]} 25. Bc5 {[%emt 0:03:34]} Ra2 {[%emt 0:06:38]} 26. Rfd1 {[%emt 0:04:39]} Bg4 {[%emt 0:03:47]} 27. Rd4 {[%emt 0:00:49]} Be2 {[%emt 0:00:48]} 28. Qc3 {[%emt 0:02:34]} Bd3 {[%emt 0:06:58]} 29. Rc1 {[%emt 0:00:56]} Qf7 {[%emt 0:03:17]} 30. Rxd3 {[%emt 0:03:16]} exd3 {[%emt 0:00:39]} 31. Qxd3 {[%emt 0:00:45]} Qh5 {[%emt 0:01:40]} 32. e6 {[%emt 0:02:46]} Qg4 {[%emt 0:00:21]} 33. g3 {[%emt 0:03:34]} Qf3 {[%emt 0:01:25]} 34. Qf1 {[%emt 0:00:21]} Qxf1+ {[%emt 0:02:04]} 35. Rxf1 {[%emt 0:00:08]} Ra1 {[%emt 0:00:34]} 36. Rxa1 {[%emt 0:02:14]} Rxa1+ {[%emt 0:00:03]} 37. Kf2 {[%emt 0:00:29]} Rc1 {[%emt 0:01:27]} 38. Ba3 {[%emt 0:00:29]} Rc2+ {[%emt 0:00:18]} 39. Kf3 {[%emt 0:00:17]} c5 {[%emt 0:00:49]} 0-1

[Event "Niedersachsen-ch B 2024"]
[Site "Verden Aller"]
[Date "2024.01.05"]
[Round "4.15"]
[White "Krneta, Slavko"]
[Black "Frowein, Ernst Holger"]
[Result "1/2-1/2"]
[ECO "B50"]
[WhiteElo "1767"]
[BlackElo "1755"]
[Annotator "NA RC"]
[PlyCount "103"]
[EventDate "2024.01.01"]
[EventType "swiss"]
[EventCountry "GER"]
[SourceTitle "playchess.com"]
[Source "ChessBase"]
[SourceQuality "1"]
[TimeControl "40/5400+30:1800+30"]

1. e4 {[%emt 0:00:18]} c5 {[%emt 0:00:07]} 2. Bc4 {[%emt 0:01:31]} e6 {[%emt 0:00:39]} 3. Nc3 {[%emt 1:30:11]} Nc6 {[%emt 1:31:14]} 4. d3 {[%emt 0:00:00]} Nf6 {[%emt 0:00:00]} 5. Nf3 {[%emt 0:00:00]} d6 {[%emt 0:00:00]} 6. Qe2 {[%emt 0:00:00]} a6 {[%emt 0:00:00]} 7. a4 {[%emt 0:00:00]} Qc7 {[%emt 0:00:00]} 8. O-O {[%emt 0:00:00]} Be7 {[%emt 0:00:00]} 9. Re1 {[%emt 0:00:00]} O-O {[%emt 0:00:00]} 10. h3 {[%emt 0:00:00]} Nd7 {[%emt 0:00:00]} 11. Bf4 {[%emt 0:00:00]} Bf6 {[%emt 0:00:00]} 12. Bg5 {[%emt 0:04:30]} Bxg5 {[%emt 0:00:00]} 13. Nxg5 {[%emt 0:00:00]} h6 {[%emt 0:00:00]} 14. Nf3 {[%emt 0:00:00]} Nde5 {[%emt 0:00:00]} 15. Nxe5 {[%emt 0:00:00]} Nxe5 {[%emt 0:00:00]} 16. Bb3 {[%emt 0:00:00]} Nc6 {[%emt 0:00:00]} 17. Qd2 {[%emt 0:00:00]} Nd4 {[%emt 0:00:00]} 18. Bc4 {[%emt 0:00:00]} Bd7 {[%emt 0:00:00]} 19. a5 {[%emt 0:00:00]} Bb5 {[%emt 0:00:00]} 20. Ne2 {[%emt 0:00:00]} Bxc4 {[%emt 0:00:00]} 21. dxc4 {[%emt 0:00:00]} Nxe2+ {[%emt 0:00:00]} 22. Rxe2 {[%emt 0:00:00]} Rfd8 {[%emt 0:00:00]} 23. Ra3 {[%emt 0:00:00]} Qe7 {[%emt 0:00:00]} 24. Rb3 {[%emt 0:00:00]} Rd7 {[%emt 0:00:00]} 25. Ree3 {[%emt 0:00:00]} Qg5 {[%emt 0:00:00]} 26. Qc3 {[%emt 0:00:00]} Rf8 {[%emt 0:00:00]} 27. Qd2 {[%emt 0:00:00]} Rfd8 {[%emt 0:00:00]} 28. Red3 {[%emt 0:00:00]} Qxd2 {[%emt 0:00:00]} 29. Rxd2 {[%emt 0:00:00]} Kf8 {[%emt 0:00:00]} 30. Rbd3 {[%emt 0:00:00]} Ke7 {[%emt 0:00:00]} 31. f4 {[%emt 0:00:00]} f6 {[%emt 0:00:00]} 32. f5 {[%emt 0:00:00]} Rb8 {[%emt 0:00:00]} 33. Rb3 {[%emt 0:00:00]} Rc7 {[%emt 0:00:00]} 34. Rbd3 {[%emt 0:00:00]} Rc6 {[%emt 0:00:00]} 35. Rg3 {[%emt 0:00:00]} Rg8 {[%emt 0:00:00]} 36. Rg6 {[%emt 0:00:00]} Rc7 {[%emt 0:00:00]} 37. Rd3 {[%emt 0:00:00]} exf5 {[%emt 0:00:50]} 38. exf5 {[%emt 0:00:00]} Rd7 {[%emt 0:01:06]} 39. Kf2 {[%emt 0:00:00]} Kf7 {[%emt 0:00:14]} 40. Kf3 {[%emt 0:00:00]} Re8 {[%emt 0:00:23]} 41. Re3 {[%emt 0:06:27]} Rde7 {[%emt 0:33:43]} 42. Rxe7+ {[%emt 0:01:49]} Rxe7 {[%emt 0:00:01]} 43. Rg4 {[%emt 0:37:14]} Re5 {[%emt 0:13:43]} 44. Rf4 {[%emt 0:00:00]} Ke7 {[%emt 0:00:00]} 45. g4 {[%emt 0:00:00]} Kf7 {[%emt 0:00:00]} 46. Re4 {[%emt 0:00:00]} Ke7 {[%emt 0:00:00]} 47. Re3 {[%emt 0:00:00]} Kd7 {[%emt 0:00:00]} 48. c3 {[%emt 0:00:00]} Kc6 {[%emt 0:00:00]} 49. b3 {[%emt 0:03:00]} d5 {[%emt 0:03:00]} 50. Rxe5 {[%emt 0:00:30]} fxe5 {[%emt 0:00:30]} 51. cxd5+ {[%emt 0:00:30]} Kxd5 52. Ke3 {[%emt 0:00:00]} 1/2-1/2

[Event "Niedersachsen-ch B 2024"]
[Site "Verden Aller"]
[Date "2024.01.05"]
[Round "4.16"]
[White "Pfeifer, Frank"]
[Black "Kewe, Stefan"]
[Result "0-1"]
[ECO "B24"]
[WhiteElo "1529"]
[BlackElo "1737"]
[Annotator "NA RC"]
[PlyCount "64"]
[EventDate "2024.01.01"]
[EventType "swiss"]
[EventCountry "GER"]
[SourceTitle "playchess.com"]
[Source "ChessBase"]
[SourceQuality "1"]
[TimeControl "40/5400+30:1800+30"]

1. e4 {[%emt 0:00:02]} c5 {[%emt 0:00:09]} 2. Nc3 {[%emt 0:00:03]} Nc6 {[%emt 1:31:21]} 3. f4 {[%emt 0:00:20]} g6 {[%emt 0:00:00]} 4. g3 {[%emt 0:00:20]} Bg7 {[%emt 0:00:00]} 5. Bg2 {[%emt 0:00:37]} e6 {[%emt 0:00:00]} 6. d3 {[%emt 0:01:15]} Nge7 {[%emt 0:00:00]} 7. Nce2 {[%emt 0:00:50]} O-O {[%emt 0:00:00]} 8. c3 {[%emt 0:00:09]} d5 {[%emt 0:00:00]} 9. e5 {[%emt 0:01:50]} b6 {[%emt 0:00:00]} 10. Nf3 {[%emt 0:00:24]} a5 {[%emt 0:00:00]} 11. O-O {[%emt 0:00:20]} Ba6 {[%emt 0:00:00]} 12. b3 {[%emt 0:02:42]} Qc7 {[%emt 0:00:00]} 13. g4 {[%emt 0:01:40]} f6 {[%emt 0:00:00]} 14. Bb2 {[%emt 0:05:29]} fxe5 {[%emt 0:00:00]} 15. Ng5 {[%emt 0:01:39]} Qd6 {[%emt 0:00:00]} 16. c4 {[%emt 0:01:28]} d4 {[%emt 0:00:00]} 17. Ne4 {[%emt 0:00:53]} Qd7 {[%emt 0:00:00]} 18. Qd2 {[%emt 0:01:58]} exf4 {[%emt 0:08:00]} 19. Nxf4 {[%emt 0:01:19]} Rf7 {[%emt 0:00:00]} 20. Ng5 {[%emt 0:00:53]} Rf6 {[%emt 0:00:00]} 21. Rae1 {[%emt 0:00:25]} e5 {[%emt 0:00:00]} 22. Nd5 {[%emt 0:01:30]} Rxf1+ {[%emt 0:00:00]} 23. Rxf1 {[%emt 0:00:14]} Qxg4 {[%emt 0:02:30]} 24. Nxe7+ {[%emt 0:00:20]} Nxe7 {[%emt 0:00:00]} 25. Bc1 {[%emt 0:03:41]} Bb7 {[%emt 0:00:00]} 26. Rf2 {[%emt 0:05:33]} Bh6 {[%emt 0:00:00]} 27. h4 {[%emt 0:01:08]} Nf5 {[%emt 0:00:00]} 28. Qe1 {[%emt 0:05:07]} Re8 {[%emt 0:00:00]} 29. Ne4 {[%emt 0:01:34]} Bxe4 {[%emt 0:00:00]} 30. dxe4 {[%emt 0:00:09]} Bxc1 {[%emt 0:00:00]} 31. Qxc1 {[%emt 0:00:29]} Ne3 {[%emt 0:00:00]} 32. Qe1 {[%emt 0:01:28]} Qd1 {[%emt 0:00:00]} 0-1

[Event "Niedersachsen-ch B 2024"]
[Site "Verden Aller"]
[Date "2024.01.05"]
[Round "4.17"]
[White "Schumacher, Klaus"]
[Black "Laun, Kurt"]
[Result "1-0"]
[ECO "A39"]
[WhiteElo "1724"]
[BlackElo "1448"]
[Annotator "NA RC"]
[PlyCount "105"]
[EventDate "2024.01.01"]
[EventType "swiss"]
[EventCountry "GER"]
[SourceTitle "playchess.com"]
[Source "ChessBase"]
[SourceQuality "1"]
[TimeControl "40/5400+30:1800+30"]

1. c4 {[%emt 0:00:03]} c5 {[%emt 0:00:07]} 2. g3 {[%emt 0:00:09]} Nf6 {[%emt 0:00:19]} 3. Bg2 {[%emt 0:00:09]} Nc6 {[%emt 0:00:20]} 4. Nf3 {[%emt 0:00:26]} g6 {[%emt 0:00:33]} 5. O-O {[%emt 0:00:11]} Bg7 {[%emt 0:00:19]} 6. d4 {[%emt 0:04:25]} cxd4 {[%emt 0:00:50]} 7. Nxd4 {[%emt 0:00:08]} O-O {[%emt 0:00:12]} 8. e3 {[%emt 0:02:18]} Rb8 {[%emt 0:02:27]} 9. Nc3 {[%emt 0:01:00]} a6 {[%emt 0:01:14]} 10. b3 {[%emt 0:01:17]} e5 {[%emt 0:02:08]} 11. Nxc6 {[%emt 0:00:30]} bxc6 {[%emt 0:00:14]} 12. Ba3 {[%emt 0:02:09]} Re8 {[%emt 0:03:14]} 13. Bd6 {[%emt 0:00:54]} Ra8 {[%emt 0:00:49]} 14. e4 {[%emt 0:05:59]} Bb7 {[%emt 0:04:41]} 15. c5 {[%emt 0:02:49]} Bf8 {[%emt 0:03:04]} 16. Bxf8 {[%emt 0:01:55]} Kxf8 {[%emt 0:04:48]} 17. Qd6+ {[%emt 0:00:41]} Kg7 {[%emt 0:00:22]} 18. Bh3 {[%emt 0:00:32]} Re7 {[%emt 0:05:37]} 19. Rfd1 {[%emt 0:04:26]} a5 {[%emt 0:07:48]} 20. Qd3 {[%emt 0:06:33]} Ba6 {[%emt 0:03:17]} 21. Qe3 {[%emt 0:00:08]} Qc7 {[%emt 0:01:03]} 22. Na4 {[%emt 0:01:06]} Rd8 {[%emt 0:03:46]} 23. Nb6 {[%emt 0:00:18]} d5 {[%emt 0:04:26]} 24. cxd6 {[%emt 0:02:40]} Rxd6 {[%emt 0:02:56]} 25. Rxd6 {[%emt 0:03:40]} Qxd6 {[%emt 0:00:49]} 26. Nc8 {[%emt 0:01:05]} Bxc8 {[%emt 0:00:48]} 27. Bxc8 {[%emt 0:00:05]} Rc7 {[%emt 0:00:45]} 28. Ba6 {[%emt 0:00:24]} c5 {[%emt 0:00:45]} 29. Bc4 {[%emt 0:00:11]} Qd7 {[%emt 0:03:13]} 30. Qe2 {[%emt 0:04:48]} h5 {[%emt 0:03:52]} 31. h4 {[%emt 0:02:22]} Qh3 {[%emt 0:01:38]} 32. Qf3 {[%emt 0:02:36]} Qd7 {[%emt 0:05:47]} 33. Rd1 {[%emt 0:01:01]} Qc6 {[%emt 0:00:57]} 34. Bd5 {[%emt 0:01:40]} Qb5 {[%emt 0:00:48]} 35. Rc1 {[%emt 0:04:47]} Qb4 {[%emt 0:03:21]} 36. Rc4 {[%emt 0:04:26]} Qb6 {[%emt 0:03:23]} 37. Qc3 {[%emt 0:01:55]} Nxd5 {[%emt 0:03:04]} 38. exd5 {[%emt 0:00:32]} f6 {[%emt 0:00:19]} 39. a3 {[%emt 0:02:10]} Kf7 {[%emt 0:05:54]} 40. b4 {[%emt 0:00:28]} axb4 {[%emt 0:00:23]} 41. axb4 {[%emt 0:30:08]} Qd6 {[%emt 0:30:29]} 42. Rxc5 {[%emt 0:00:57]} Rxc5 {[%emt 0:00:32]} 43. Qxc5 {[%emt 0:00:08]} Qxc5 {[%emt 0:00:16]} 44. bxc5 {[%emt 0:00:05]} Ke7 {[%emt 0:00:09]} 45. c6 {[%emt 0:00:23]} Kd6 {[%emt 0:00:09]} 46. Kf1 {[%emt 0:00:07]} g5 {[%emt 0:06:09]} 47. Ke2 {[%emt 0:00:19]} g4 {[%emt 0:00:27]} 48. Kd3 {[%emt 0:08:04]} f5 {[%emt 0:00:57]} 49. Kc4 {[%emt 0:00:08]} Kc7 {[%emt 0:01:08]} 50. Kc5 {[%emt 0:00:27]} f4 {[%emt 0:00:19]} 51. d6+ {[%emt 0:00:06]} Kc8 {[%emt 0:00:11]} 52. Kd5 {[%emt 0:00:14]} fxg3 {[%emt 0:00:43]} 53. fxg3 {[%emt 0:00:09]} 1-0

[Event "Niedersachsen-ch B 2024"]
[Site "Verden Aller"]
[Date "2024.01.05"]
[Round "4.18"]
[White "Nordhorn, Horst"]
[Black "Bangert, Jonas"]
[Result "0-1"]
[ECO "D00"]
[WhiteElo "1696"]
[BlackElo "1527"]
[Annotator "NA RC"]
[PlyCount "74"]
[EventDate "2024.01.01"]
[EventType "swiss"]
[EventCountry "GER"]
[SourceTitle "playchess.com"]
[Source "ChessBase"]
[SourceQuality "1"]
[TimeControl "40/5400+30:1800+30"]

1. d4 {[%emt 0:00:02]} Nf6 {[%emt 0:00:07]} 2. Nc3 {[%emt 0:00:16]} d5 {[%emt 0:00:09]} 3. Bf4 {[%emt 0:00:11]} Bf5 {[%emt 0:02:40]} 4. f3 {[%emt 0:00:27]} h5 {[%emt 0:02:29]} 5. h4 {[%emt 0:00:49]} e6 {[%emt 0:01:10]} 6. a3 {[%emt 0:03:23]} c5 {[%emt 0:01:21]} 7. e3 {[%emt 0:00:16]} Nc6 {[%emt 0:01:26]} 8. Bd3 {[%emt 0:00:30]} Bxd3 {[%emt 0:07:44]} 9. Qxd3 {[%emt 0:02:18]} cxd4 {[%emt 0:12:00]} 10. exd4 {[%emt 0:00:12]} Bd6 {[%emt 0:00:38]} 11. Bxd6 {[%emt 0:00:37]} Qxd6 {[%emt 0:00:02]} 12. Nge2 {[%emt 0:00:15]} a6 {[%emt 0:10:28]} 13. Nd1 {[%emt 0:08:19]} Na5 {[%emt 0:08:18]} 14. Ne3 {[%emt 0:01:12]} Rc8 {[%emt 0:04:24]} 15. c3 {[%emt 0:01:04]} b5 {[%emt 0:03:20]} 16. Kf2 {[%emt 0:00:40]} Nc4 {[%emt 0:04:36]} 17. Rab1 {[%emt 0:06:15]} Ke7 {[%emt 0:04:07]} 18. g3 {[%emt 0:01:22]} Rc7 {[%emt 0:10:49]} 19. Rhe1 {[%emt 0:02:22]} Ra8 {[%emt 0:02:58]} 20. Nf4 {[%emt 0:00:23]} Kf8 {[%emt 0:05:43]} 21. Nfg2 {[%emt 0:11:06]} g6 {[%emt 0:02:14]} 22. Re2 {[%emt 0:01:09]} a5 {[%emt 0:01:47]} 23. Rbe1 {[%emt 0:00:27]} Rc6 {[%emt 0:03:07]} 24. Nd1 {[%emt 0:00:13]} b4 {[%emt 0:01:07]} 25. axb4 {[%emt 0:00:28]} axb4 {[%emt 0:00:06]} 26. Nf4 {[%emt 0:01:59]} Ra1 {[%emt 0:03:02]} 27. Qc2 {[%emt 0:06:57]} bxc3 {[%emt 0:03:32]} 28. bxc3 {[%emt 0:02:09]} Rb6 {[%emt 0:02:08]} 29. Nd3 {[%emt 0:00:17]} Ng8 {[%emt 0:01:38]} 30. Kg2 {[%emt 0:02:29]} Ne7 {[%emt 0:01:22]} 31. g4 {[%emt 0:01:14]} hxg4 {[%emt 0:00:05]} 32. fxg4 {[%emt 0:00:07]} Kg7 {[%emt 0:01:03]} 33. N1f2 {[%emt 0:07:10]} Rxe1 {[%emt 0:00:06]} 34. Rxe1 {[%emt 0:00:16]} f5 {[%emt 0:01:03]} 35. Qe2 {[%emt 0:04:33]} fxg4 {[%emt 0:00:27]} 36. Nxg4 {[%emt 0:00:33]} Nf5 {[%emt 0:00:06]} 37. Kh3 {[%emt 0:00:22]} Qg3# {[%emt 0:00:29]} 0-1